Cogmind - Beta 13 @@@ ROGUE MODE // 2024.05.21 @ 00:13:10 Player: H3-RMN Result: Destroyed by Enhanced Grunt with Neutron Cannon Performance ------------- Evolutions (3) 1500 Regions Visited (13) 2600 Robots Destroyed (144) 720 Value Destroyed (3232) 3232 Prototype IDs (77) 1540 Alien Tech Used (0) 0 Bonus (927) 927 TOTAL SCORE: 10519 Bonus ------- High Alert Combat Kills 71 Follower Combat Kills 256 Aligned with FarCom 300 Met Data Miner 300 Cogmind --------- Core Integrity 0/700 Matter 280/300 Energy 99/100 System Corruption 2% Temperature Cool (0) Movement Core (50) Location -7/Data Miner Parts ------- > --- POWER (1) -------- (None) > --- PROPULSION (4) --- (None) > --- UTILITY (6) ------ Core Analyzer Core Analyzer Advanced Hacking Suite > --- WEAPON (2) ------- Mini Grenade Launcher > --- INVENTORY (5) ---- Improved Propulsion Shielding System Mapper Authchip [Propulsion] Cooled Particle Cannon Spear Peak State ------------ > --- POWER ------------ Backup Power III > --- PROPULSION ------- Flying Fortress v7 > --- UTILITY ---------- High-capacity Storage Unit Machine Analyzer Transport Network Coupler Improved Light Armor Plating Advanced Hacking Suite Advanced Hacking Suite > --- WEAPON ----------- Spear Spear > --- INVENTORY -------- Combat Airjet Core Analyzer Matter Filter Transmission Jammer Improved Light Armor Plating Advanced Hacking Suite Advanced Hacking Suite Advanced Hacking Suite Authchip [Power] Authchip [Propulsion] Authchip [Device] Authchip [Device] Authchip [Armor] Authchip [Armor] Authchip [Weapon] Authchip [Weapon] Improved Trap Extractor Cooled Particle Cannon Mini Grenade Launcher [Rating: 71] Favorites ----------- Power Improved Ion Engine Engine Improved Ion Engine Propulsion Wheel Treads Light Treads Wheel Wheel Flight Unit Flying Fortress v7 Utility Improved Light Armor Plating Device Transmission Jammer Storage High-capacity Storage Unit Processor Machine Analyzer Hackware Hacking Suite Protection Improved Light Armor Plating Weapon Improved Assault Rifle Energy Gun Small Laser Energy Cannon Cooled Particle Cannon Ballistic Gun Improved Assault Rifle Launcher Grenade Launcher Impact Weapon Power Maul Slashing Weapon Axe Piercing Weapon Spear Special Melee Weapon Improved Datajack Build | -11 -10 -10 -9 -9 -9 -8 -8 -7 -7 -7 -7 -7 -7 ------- Run | Yrd Mat Min Mat Min Exi Min Mat Fac Was Fac Low Low Dat Slots Evolved 6 | . . . 2 . . . 2 2 . . . . . Power . | . . . . . . . . . . . . . . Propulsion 2 | . . . 1 . . . 1 . . . . . . Utility 4 | . . . 1 . . . 1 2 . . . . . Weapon . | . . . . . . . . . . . . . . Parts Attached 182 | 7 8 4 32 3 1 4 23 42 . 42 1 11 4 Power 8 | 1 1 . 2 . . 1 . 2 . 1 . . . Engine 8 | 1 1 . 2 . . 1 . 2 . 1 . . . Core . | . . . . . . . . . . . . . . Reactor . | . . . . . . . . . . . . . . Propulsion 28 | 2 1 1 8 1 . 1 6 3 . . . 3 2 Treads 17 | 1 1 . 6 1 . 1 3 . . . . 2 2 Leg . | . . . . . . . . . . . . . . Wheel 8 | 1 . 1 2 . . . 3 1 . . . . . Hover . | . . . . . . . . . . . . . . Flight 3 | . . . . . . . . 2 . . . 1 . Utility 80 | 2 2 1 11 . . . 8 25 . 26 . 5 . Device 28 | 1 . . 3 . . . 2 13 . 9 . . . Storage 6 | 1 1 . 3 . . . . . . 1 . . . Processor 6 | . . . . . . . 1 1 . 3 . 1 . Hackware 10 | . . . . . . . . 3 . 7 . . . Protection 30 | . 1 1 5 . . . 5 8 . 6 . 4 . Artifact . | . . . . . . . . . . . . . . Weapon 66 | 2 4 2 11 2 1 2 9 12 . 15 1 3 2 Energy Gun 3 | 2 . . . . . . . 1 . . . . . Energy Cannon 1 | . . . . . . . . 1 . . . . . Ballistic Gun 19 | . 3 1 7 1 . 1 5 1 . . . . . Ballistic Cannon . | . . . . . . . . . . . . . . Launcher 17 | . 1 1 1 1 . 1 2 3 . 5 . 1 1 Special Weapon . | . . . . . . . . . . . . . . Impact Weapon 1 | . . . . . . . . 1 . . . . . Slashing Weapon 4 | . . . . . . . . 2 . 2 . . . Piercing Weapon 10 | . . . . . . . . . . 7 1 1 1 Special Melee Weapon 11 | . . . 3 . 1 . 2 3 . 1 . 1 . Unidentified Prototypes 3 | . . . . . . . . 3 . . . . . Parts Lost 11 | . . 1 . . . . 1 . . 3 . . 6 Power 1 | . . . . . . . . . . . . . 1 Propulsion 3 | . . . . . . . . . . . . . 3 Utility 5 | . . 1 . . . . 1 . . 2 . . 1 Weapon 2 | . . . . . . . . . . 1 . . 1 Highest Loss Streak 6 | . . 1 . . . . 1 . . 1 . . 6 To Critical Strikes . | . . . . . . . . . . . . . . Average Slot Usage (%) 88 | . 99 100 99 100 86 100 99 65 76 75 76 75 70 Engine 8 | . 14 14 10 11 11 11 9 1 7 7 7 7 7 Treads 12 | . 14 14 21 22 22 22 22 . . . . . 1 Wheel 7 | . 14 14 11 11 11 11 13 . . . . . . Flight 2 | . . . . . . . . 6 7 7 7 6 5 Device 2 | . 6 . 3 . . . . 4 7 3 . . . Storage 9 | . 14 14 11 11 11 11 9 7 7 7 7 7 7 Processor 5 | . . . . . . . 8 8 7 13 15 14 15 Hackware 4 | . . . . . . . . 11 15 16 7 7 7 Protection 13 | . 7 14 18 22 22 22 17 9 7 3 15 15 9 Energy Gun 1 | . 14 . . . . . . . . . . . . Ballistic Gun 10 | . 13 27 21 22 . 11 16 . . . . . . Slashing Weapon 1 | . . . . . . . . 6 7 3 . . . Piercing Weapon 1 | . . . . . . . . . . 5 7 6 11 Special Melee Weapon 2 | . . . . . 9 . 1 3 7 5 7 5 2 Naked Turns . | . . . . . . . . . . . . . . Heaviest Build 63 | 14 32 32 59 59 54 62 63 57 50 50 50 50 50 Greatest Support 56 | 20 20 10 20 10 10 10 24 50 50 50 50 56 56 Greatest Overweight (x) 16 | 1 3 3 5 5 5 6 6 16 . . . . 1 Average Overweight (x) 1 | . 2 3 4 5 5 5 3 . . . . . . Largest Inventory Capacity 20 | 8 15 15 20 20 20 20 20 20 20 20 20 20 20 Average Capacity 18 | 7 14 15 18 20 20 20 20 20 20 20 20 20 19 Most Carried 20 | 6 15 15 20 20 20 19 20 20 20 20 20 20 19 Average Carried 18 | 3 13 14 17 20 19 19 19 19 19 19 20 19 16 Final Capacity 20 | 8 15 15 20 20 20 20 20 20 20 20 20 20 5 Final Carried 20 | 6 15 15 20 20 20 19 20 19 20 20 20 19 5 Class Distribution -------------------- 66% | Mutant 11% | Hacker-Mutant 9% | Hacker-Scout 8% | Scavenger-Mutant Dominant Class ---------------- Mutant | -10/Materials Mutant | -10/Mines Mutant | -9/Materials Mutant | -9/Mines Mutant | -9/Exiles Mutant | -8/Mines Mutant | -8/Materials Hacker-Mutant | -7/Factory Hacker-Mutant | -7/Waste Hacker-Scout | -7/Factory Mutant | -7/Lower Caves Mutant | -7/Lower Caves Mutant | -7/Data Miner Resources | -11 -10 -10 -9 -9 -9 -8 -8 -7 -7 -7 -7 -7 -7 ----------- Run | Yrd Mat Min Mat Min Exi Min Mat Fac Was Fac Low Low Dat Matter Collected 3450 | 270 268 115 885 85 18 93 517 410 90 502 67 130 . Remotely . | . . . . . . . . . . . . . . Salvage Created 4429 | 12 645 171 1239 91 . 142 497 706 . 600 47 259 20 Parts 324 | 4 33 20 98 14 . 7 29 46 . 54 5 12 2 Haulers Intercepted 15 | . 1 . 6 . . . . 4 . 4 . . . Recyclers Shooed 5 | . 1 . 1 . . 1 . 2 . . . . . Parts Field Recycled . | . . . . . . . . . . . . . . Retrieved Matter . | . . . . . . . . . . . . . . Parts Self-Destructed 18 | . . . . . . . . . . . 13 5 . Prevented 1 | . . . . . . . . . . . . 1 . Kills | -11 -10 -10 -9 -9 -9 -8 -8 -7 -7 -7 -7 -7 -7 ------- Run | Yrd Mat Min Mat Min Exi Min Mat Fac Was Fac Low Low Dat Combat Hostiles Destroyed 86 | . 17 4 18 3 . 3 13 5 . 18 1 4 . Melee 8 | . . . . . . . . 4 . 3 1 . . Guns 36 | . 11 1 15 . . . 8 1 . . . . . AOE 42 | . 6 3 3 3 . 3 5 . . 15 . 4 . Classes Destroyed 15 | 1 6 1 4 . . . . 1 . 1 . 1 . Worker 13 | . 2 . 2 2 . 2 . 2 . 3 . . . Builder 3 | . 1 1 1 . . . . . . . . . . Tunneler 7 | 1 1 1 2 1 . . . 1 . . . . . Hauler 15 | . 1 . 6 . . . . 4 . 4 . . . Recycler 5 | . . 1 1 . . . . 2 . 1 . . . Mechanic 1 | . . . 1 . . . . . . . . . . Operator 10 | . 2 . 3 . . . 2 2 . 1 . . . Watcher 3 | . . . 2 . . . . 1 . . . . . Swarmer 33 | . 6 3 3 3 . . 3 . . 11 . 4 . Cutter 4 | . . . . . . . . . . 4 . . . Grunt 33 | . 11 1 11 . . 2 7 1 . . . . . Brawler 2 | . . . 1 . . 1 . . . . . . . Sentry 6 | . . . 3 . . . 3 . . . . . . Programmer 8 | . . . . . . . . 4 . 3 1 . . Decomposer 1 | . . . . . . . . . . . . 1 . Samaritan 4 | . . . . . . . . . . . . 4 . Best Kill Streak 8 | 1 8 4 4 3 . 3 4 4 . 6 1 4 1 Combat Bots Only 6 | . 6 3 4 3 . 3 4 1 . 4 1 4 . Max Kills in Single Turn 4 | 1 3 2 3 3 . 2 2 1 . 4 1 3 1 Gunslinging . | . . . . . . . . . . . . . . Exploded 3 | . 2 2 2 3 . 2 2 . . 3 . 3 . Melee 1 | . . . . . . . . 1 . 1 1 . . Uniques/NPCs Destroyed 1 | . . . . . . . . . . . . . 1 Data Miner (-7/Data Miner) Combat | -11 -10 -10 -9 -9 -9 -8 -8 -7 -7 -7 -7 -7 -7 -------- Run | Yrd Mat Min Mat Min Exi Min Mat Fac Was Fac Low Low Dat Hostile Shots Fired 372 | . 56 6 60 7 . 4 50 44 . 67 25 26 27 Missed 133 | . 16 1 22 . . 1 12 17 . 30 14 14 6 Damage Taken 4479 | . 503 120 512 56 . 78 549 488 . 824 173 187 989 Core 958 | . 43 . 85 . . . 93 66 . 93 64 . 514 Absorbed by Shields . | . . . . . . . . . . . . . . Redirected to Shielding 150 | . . . . . . . . . . 19 53 78 . Ignored by Resistances 64 | . . . . . . . 62 2 . . . . . Regen/Repaired (Parts) 455 | . . . 40 . . . 170 58 . 187 . . . Core Remaining (%) 85 | 100 . 82 . . . 78 83 . . . . . . Volleys Fired 231 | 1 60 12 86 4 . 7 41 8 . 9 . 2 1 Largest 2 | 2 2 2 2 2 . 1 2 2 . 1 . 1 1 Hottest 98 | 90 90 40 46 46 . 30 46 98 . 45 . 30 30 Shots Fired 422 | 2 115 22 167 7 . 7 76 14 . 9 . 2 1 Gun 387 | 2 110 20 162 6 . 4 70 13 . . . . . Cannon . | . . . . . . . . . . . . . . Launcher 35 | . 5 2 5 1 . 3 6 1 . 9 . 2 1 Special . | . . . . . . . . . . . . . . Kinetic 315 | . 46 20 162 6 . 4 70 7 . . . . . Thermal 72 | 2 64 . . . . . . 6 . . . . . Explosive 35 | . 5 2 5 1 . 3 6 1 . 9 . 2 1 Electromagnetic . | . . . . . . . . . . . . . . Robot Hit Streak 23 | 1 23 16 15 5 . 8 19 13 . 1 . 1 . Robot Miss Streak 6 | 1 4 2 6 . . 1 3 1 . 6 . . . Penetration Max . | . . . . . . . . . . . . . . Secondary Targets 1 | . . . 1 . . . . . . . . . . Max Gunslinging Chain 1 | . . . 1 . . . . . . . . . . Shots Hit Robots 348 | 1 80 15 96 4 3 6 52 52 . 28 1 8 2 Core Hits 215 | 1 37 10 53 5 . 9 29 19 . 36 1 9 6 Critical Kills . | . . . . . . . . . . . . . . Critical Parts Destroyed 1 | . . . 1 . . . . . . . . . . Critical Strikes 10 | . 2 . 1 . . . . 4 . 2 . 1 . Burn 3 | . 2 . . . . . . 1 . . . . . Destroy 1 | . . . 1 . . . . . . . . . . Sever 4 | . . . . . . . . 3 . 1 . . . Impale 2 | . . . . . . . . . . 1 . 1 . Melee Attacks 178 | . . . 1 . 3 . . 78 . 76 2 7 11 Impact . | . . . . . . . . . . . . . . Slashing 111 | . . . . . . . . 75 . 36 . . . Piercing 57 | . . . . . . . . . . 38 2 7 10 Sneak Attacks 40 | . . . 1 . 3 . . 18 . 9 . 7 2 Combat Hostiles . | . . . . . . . . . . . . . . Follow-up Attacks . | . . . . . . . . . . . . . . Damage Inflicted 10097 | 12 1385 308 1566 214 . 304 1086 2177 . 2203 35 640 167 Guns 3730 | 12 1016 193 1397 62 . 52 789 209 . . . . . Cannons . | . . . . . . . . . . . . . . Explosions 2817 | . 369 115 169 152 . 252 297 33 . 1107 . 225 98 Melee 3550 | . . . . . . . . 1935 . 1096 35 415 69 Ramming . | . . . . . . . . . . . . . . Kinetic 2967 | . 396 193 1397 62 . 52 789 78 . . . . . Thermal 763 | 12 620 . . . . . . 131 . . . . . Explosive 2817 | . 369 115 169 152 . 252 297 33 . 1107 . 225 98 Electromagnetic . | . . . . . . . . . . . . . . Impact . | . . . . . . . . . . . . . . Slashing 2594 | . . . . . . . . 1935 . 659 . . . Piercing 956 | . . . . . . . . . . 437 35 415 69 Highest Corruption 3 | . . . 3 3 3 3 . 1 . 3 2 2 2 Average Corruption 2 | . . . 2 3 3 3 . 1 . 1 2 2 2 Corruption Purged 4 | . . . . . . . . 1 . 3 . . . Corruption Blocked . | . . . . . . . . . . . . . . Effects 84 | . . . 23 14 13 10 . 5 . 10 4 3 2 Message Errors 25 | . . . 8 2 3 5 . 1 . 2 1 2 1 Matter Fused 14 | . . . 3 4 2 2 . 1 . 2 . . . Heat Flow Errors 11 | . . . 4 2 2 2 . . . . . 1 . Energy Discharges 13 | . . . 3 2 4 . . 1 . 2 1 . . Parts Rejected 2 | . . . . . . . . 1 . . 1 . . Parts Fused 1 | . . . . 1 . . . . . . . . . Data Loss (minor) 13 | . . . 3 3 2 1 . 1 . 2 1 . . Data Loss (major) 1 | . . . . . . . . . . 1 . . . Alerts 4 | . . . 2 . . . . . . 1 . . 1 Overload Shots . | . . . . . . . . . . . . . . Overflow Damage 551 | . 30 . . 16 . . . 304 . 101 . 100 . Projectiles . | . . . . . . . . . . . . . . Explosions 77 | . 30 . . 16 . . . . . 31 . . . Melee 474 | . . . . . . . . 304 . 70 . 100 . Knockbacks . | . . . . . . . . . . . . . . Impact . | . . . . . . . . . . . . . . Kinetic . | . . . . . . . . . . . . . . Secondary . | . . . . . . . . . . . . . . Self-Inflicted Damage 371 | . 44 50 38 . . 29 5 . . 167 . 38 . Shots 15 | . 2 2 1 . . 3 1 . . 5 . 1 . Rammed . | . . . . . . . . . . . . . . Targets Rammed . | . . . . . . . . . . . . . . Kicked . | . . . . . . . . . . . . . . Crushed . | . . . . . . . . . . . . . . Highest Temperature 273 | 30 198 2 247 201 256 273 16 134 . . . 155 . Average Temperature 75 | 17 70 2 66 98 110 99 7 50 . . . 86 . Received Heat Transfer 1014 | . 240 36 252 . . 27 315 126 . 18 . . . Effects 1 | . . . . . . 1 . . . . . . . Interference 1 | . . . . . . 1 . . . . . . . Siege Activations . | . . . . . . . . . . . . . . Robots Corrupted . | . . . . . . . . . . . . . . Combat Hostiles . | . . . . . . . . . . . . . . Parts Fried . | . . . . . . . . . . . . . . Impact Corruptions . | . . . . . . . . . . . . . . Robots Melted . | . . . . . . . . . . . . . . Combat Hostiles . | . . . . . . . . . . . . . . Parts Melted 8 | . 5 . . . . . . 3 . . . . . Heat Transferred 2043 | 25 1759 . . . . . . 259 . . . . . Parts Sabotaged . | . . . . . . . . . . . . . . Parts Stolen . | . . . . . . . . . . . . . . Parts Stripped . | . . . . . . . . . . . . . . Power Chain Reactions . | . . . . . . . . . . . . . . Alert | -11 -10 -10 -9 -9 -9 -8 -8 -7 -7 -7 -7 -7 -7 ------- Run | Yrd Mat Min Mat Min Exi Min Mat Fac Was Fac Low Low Dat Peak Influence 674 | 5 504 271 421 203 . 93 316 321 171 674 . . . Initial 145 | . 3 145 61 123 . . . 13 88 77 . . . Average 189 | 2 207 142 255 75 . 38 77 207 125 285 . . . Maximum Alert Level 2 | . 2 1 2 1 . . 1 1 . 2 . . . Low Security (%) 56 | 100 56 93 37 76 . 100 87 36 100 36 . . . Level 1 38 | . 37 6 55 23 . . 12 63 . 44 . . . Level 2 5 | . 5 . 7 . . . . . . 19 . . . Level 3 . | . . . . . . . . . . . . . . Level 4 . | . . . . . . . . . . . . . . Level 5 . | . . . . . . . . . . . . . . High Security . | . . . . . . . . . . . . . . Max Security . | . . . . . . . . . . . . . . Squads Dispatched 44 | . 5 . 6 . . . 6 15 . 12 . . . Investigation 25 | . 5 . 4 . . . 2 10 . 4 . . . Extermination 8 | . . . . . . . . 3 . 5 . . . Reinforcement 9 | . . . 2 . . . 2 2 . 3 . . . Assault 1 | . . . . . . . 1 . . . . . . Garrison 1 | . . . . . . . 1 . . . . . . Intercept . | . . . . . . . . . . . . . . Searches Triggered . | . . . . . . . . . . . . . . Construction Impeded 1 | . . . . . . . . . . 1 . . . Haulers Reinforced 1 | . . . . . . . . 1 . . . . . Active Scanning Responses . | . . . . . . . . . . . . . . Cargo Convoy Interrupts 1 | . . . . . . . . 1 . . . . . Stealth | -11 -10 -10 -9 -9 -9 -8 -8 -7 -7 -7 -7 -7 -7 --------- Run | Yrd Mat Min Mat Min Exi Min Mat Fac Was Fac Low Low Dat Distress Signals 14 | . 2 . 7 . . . 1 3 . 1 . . . Communications Jammed 3 | . . . . . . . . 1 . 2 . . . Distress Signals . | . . . . . . . . . . . . . . Times Spotted 210 | . 29 5 40 5 . 3 25 38 7 33 12 9 4 Peak Tracking Total 6 | . 5 3 4 3 . 3 5 5 6 5 6 4 4 Tactical Retreats 21 | . 1 . . . . . 1 5 1 7 5 1 . Traps | -11 -10 -10 -9 -9 -9 -8 -8 -7 -7 -7 -7 -7 -7 ------- Run | Yrd Mat Min Mat Min Exi Min Mat Fac Was Fac Low Low Dat Traps Triggered 5 | . 1 . 2 . . . . 1 . 1 . . . Indirectly . | . . . . . . . . . . . . . . Trap Hack Attempts 166 | . . . 32 . . . 68 45 . 21 . . . Triggered . | . . . . . . . . . . . . . . Disarmed 1 | . . . . . . . 1 . . . . . . Reprogrammed 22 | . . . 3 . . . 6 7 . 6 . . . Reused 8 | . . . . . . . . 1 . 7 . . . Traps Extracted 15 | . . . 2 . . . 2 6 . 5 . . . Installed 8 | . . . . . . . . 2 . 6 . . . Triggered 11 | . . . . . . . . 3 . 8 . . . Most Traps Carried 8 | . . . 2 2 2 2 4 8 6 6 5 5 5 Machines | -11 -10 -10 -9 -9 -9 -8 -8 -7 -7 -7 -7 -7 -7 ---------- Run | Yrd Mat Min Mat Min Exi Min Mat Fac Was Fac Low Low Dat Machines Disabled 12 | . 1 3 4 . . . . . . 2 1 . 1 Max in Single Turn 2 | . 1 2 1 . . . . . . 1 1 . 1 Garrison Access 4 | . . . . . . . 1 1 . 2 . . . Machines Repaired . | . . . . . . . . . . . . . . Machines Dismantled . | . . . . . . . . . . . . . . Machines Sabotaged . | . . . . . . . . . . . . . . Overloaded Fab Kills . | . . . . . . . . . . . . . . Hacking | -11 -10 -10 -9 -9 -9 -8 -8 -7 -7 -7 -7 -7 -7 --------- Run | Yrd Mat Min Mat Min Exi Min Mat Fac Was Fac Low Low Dat Machines Accessed 91 | . 8 . 15 . 2 . 10 25 . 27 . . 4 Terminals 48 | . 6 . 9 . . . 7 11 . 15 . . . Fabricators 6 | . . . . . . . . 4 . 2 . . . Repair Stations 10 | . . . 2 . . . 2 3 . 3 . . . Recycling Units 11 | . 2 . 2 . . . 1 4 . 2 . . . Scanalyzers 6 | . . . 2 . . . . 2 . 2 . . . Garrison Access 4 | . . . . . . . . 1 . 3 . . . Total Hacks 305 | . 23 . 49 . 5 . 28 92 . 77 . . 31 Successful 191 | . 9 . 27 . 5 . 19 49 . 51 . . 31 Failed 113 | . 13 . 22 . . . 9 43 . 26 . . . Catastrophic 19 | . 1 . 3 . . . 2 11 . 2 . . . Database Lockouts 1 | . 1 . . . . . . . . . . . . Manual 103 | . 11 . 18 . 1 . 13 32 . 27 1 . . Terminals 155 | . 18 . 31 . . . 20 39 . 47 . . . Fabricators 23 | . . . . . . . . 13 . 10 . . . Repair Stations 24 | . . . 6 . . . 6 7 . 5 . . . Recycling Units 30 | . 5 . 4 . . . 2 16 . 3 . . . Scanalyzers 31 | . . . 8 . . . . 16 . 7 . . . Garrison Access 6 | . . . . . . . . 1 . 5 . . . Terminal Hacks 92 | . 5 . 11 . 5 . 7 14 . 19 . . 31 Record 15 | . . . . . 4 . . . . . . . 11 Part Schematic 15 | . . . 1 . . . . 3 . . . . 11 Robot Schematic 9 | . . . 1 . . . . 1 . 1 . . 6 Robot Analysis 2 | . 1 . 1 . . . . . . . . . . Prototype ID Bank 11 | . 2 . 3 . . . . 2 . 1 . . 3 Level Access Points 1 | . . . . . . . . . . 1 . . . Branch Access Points 3 | . . . . . . . 1 1 . 1 . . . Terminal Index 5 | . 1 . 1 . . . 1 1 . 1 . . . Scanalyzer Index 1 | . . . . . . . . . . 1 . . . Unreport Threat 1 | . . . . . . . 1 . . . . . . Locate Traps 12 | . 1 . 3 . . . 2 2 . 4 . . . Recall Investigation 1 | . . . . . . . . . . 1 . . . Recall Extermination 2 | . . . . . . . . 1 . 1 . . . Hauler Manifests 2 | . . . . . . . 1 . . 1 . . . Registered Components 1 | . . . . . . . . . . 1 . . . Registered Prototypes 1 | . . . . . . . . . . 1 . . . Zone Layout 9 | . . . 1 . . . 1 3 . 4 . . . Derelict Proto ID Bank 1 | . . . . . 1 . . . . . . . . Fabricator Hacks 11 | . . . . . . . . 2 . 9 . . . Network Status 1 | . . . . . . . . . . 1 . . . Load Schematic 6 | . . . . . . . . 2 . 4 . . . Build 4 | . . . . . . . . . . 4 . . . Repair Station Hacks 15 | . . . 2 . . . 5 3 . 5 . . . Scan Component 7 | . . . 1 . . . 3 1 . 2 . . . Repair 6 | . . . 1 . . . 2 1 . 2 . . . Refit 2 | . . . . . . . . 1 . 1 . . . Recycling Unit Hacks 11 | . 2 . 1 . . . 1 5 . 2 . . . Report Inventory 9 | . 2 . 1 . . . 1 3 . 2 . . . Retrieve Components 2 | . . . . . . . . 2 . . . . . Scanalyzer 24 | . . . 8 . . . . 12 . 4 . . . Insert Component 11 | . . . 4 . . . . 5 . 2 . . . Analyze 13 | . . . 4 . . . . 7 . 2 . . . Garrison Access Hacks 3 | . . . . . . . . 1 . 2 . . . Seal Access 3 | . . . . . . . . 1 . 2 . . . Unauthorized Hacks 35 | . 2 . 5 . . . 6 12 . 10 . . . Terminals 21 | . . . 3 . . . 5 5 . 8 . . . Track 3 | . . . . . . . 1 1 . 1 . . . Assimilate 3 | . . . . . . . . 1 . 2 . . . Botnet 12 | . . . 3 . . . 3 2 . 4 . . . Operators 3 | . . . . . . . 1 1 . 1 . . . Fabricators 4 | . . . . . . . . 3 . 1 . . . Prioritize 1 | . . . . . . . . . . 1 . . . Recompile 3 | . . . . . . . . 3 . . . . . Repair Stations . | . . . . . . . . . . . . . . Recycling Units 10 | . 2 . 2 . . . 1 4 . 1 . . . Reject 2 | . . . . . . . . 1 . 1 . . . Recyclers 1 | . . . . . . . . 1 . . . . . Mask 1 | . . . . . . . . 1 . . . . . Tunnel 6 | . 2 . 2 . . . 1 1 . . . . . Scanalyzers . | . . . . . . . . . . . . . . Garrison Access . | . . . . . . . . . . . . . . Data Cores Recovered 2 | . 1 . . . . . . . . 1 . . . Used . | . . . . . . . . . . . . . . Hacking Detections 75 | . 7 . 13 . . . 9 22 . 24 . . . Full Trace Events 15 | . 2 . 3 . . . . 6 . 4 . . . Feedback Events 1 | . . . . . . . . . . 1 . . . Corruption 1 | . . . . . . . . . . 1 . . . Feedback Blocked . | . . . . . . . . . . . . . . Robot Schematics Acquired 9 | . . . 1 . . . . 1 . 1 . . 6 Robots Built . | . . . . . . . . . . . . . . Authchips . | . . . . . . . . . . . . . . Time . | . . . . . . . . . . . . . . Total Robot Build Rating . | . . . . . . . . . . . . . . Part Schematics Acquired 24 | . . . 5 . . . . 7 . 1 . . 11 Parts Built 4 | . . . . . . . . . . 4 . . . Authchips 3 | . . . . . . . . . . 3 . . . Time 131 | . . . . . . . . . . 131 . . . Total Part Build Rating 24 | . . . . . . . . . . 24 . . . Parts Repaired 6 | . . . 1 . . . 2 1 . 2 . . . Time 190 | . . . 26 . . . 72 19 . 73 . . . Parts Recycled . | . . . . . . . . . . . . . . Recycled Matter . | . . . . . . . . . . . . . . Retrieved Matter . | . . . . . . . . . . . . . . Retrieved Components 11 | . . . . . . . . 11 . . . . . Parts Scanalyzed 11 | . . . 4 . . . . 5 . 2 . . . Part Schematics Acquired 9 | . . . 4 . . . . 4 . 1 . . . Parts Damaged . | . . . . . . . . . . . . . . Bothacking | -11 -10 -10 -9 -9 -9 -8 -8 -7 -7 -7 -7 -7 -7 ------------ Run | Yrd Mat Min Mat Min Exi Min Mat Fac Was Fac Low Low Dat Used RIF Installer . | . . . . . . . . . . . . . . Robots Hacked 9 | . . . 1 . 3 . . 3 . 1 . . 1 Non-combat 6 | . . . . . 3 . . 2 . 1 . . . Combat 3 | . . . 1 . . . . 1 . . . . 1 Robot Hacks Applied 9 | . . . 1 . 3 . . 3 . 1 . . 1 parse_system 7 | . . . 1 . 3 . . 2 . . . . 1 find_chute 1 | . . . . . . . . 1 . . . . . check_alert 1 | . . . . . . . . . . 1 . . . Relay Couplers Released 2 | . . . . . . . 2 . . . . . . Machine Destruction 2 | . . . . . . . 2 . . . . . . Fabnet Peak Effective % . | . . . . . . . . . . . . . . Robots Rewired . | . . . . . . . . . . . . . . Allies Hacked . | . . . . . . . . . . . . . . Hacks Repelled . | . . . . . . . . . . . . . . Allies | -11 -10 -10 -9 -9 -9 -8 -8 -7 -7 -7 -7 -7 -7 -------- Run | Yrd Mat Min Mat Min Exi Min Mat Fac Was Fac Low Low Dat Total Allies 26 | . . 5 . . . . . 1 19 1 . . . Largest Group 19 | . . 5 5 . . . . 1 19 1 . . . Highest-Rated Group 475 | . . 81 81 . . . . 10 475 26 . . . Highest-Rated Ally 35 | . . 31 31 . . . . 10 35 26 . . . Total Orders . | . . . . . . . . . . . . . . Ally Attacks 119 | . . 5 46 . . . . . 68 . . . . Total Damage 4294 | . . 43 451 . . . . . 3800 . . . . Kills 17 | . . 1 6 . . . . . 10 . . . . Allies Corrupted . | . . . . . . . . . . . . . . Allies Melted . | . . . . . . . . . . . . . . Intel | -11 -10 -10 -9 -9 -9 -8 -8 -7 -7 -7 -7 -7 -7 ------- Run | Yrd Mat Min Mat Min Exi Min Mat Fac Was Fac Low Low Dat Robot Analysis Total 2 | . 1 . 1 . . . . . . . . . . Derelict Logs Recovered 5 | . . 1 . 3 . . . . . . 1 . . Drone Launches . | . . . . . . . . . . . . . . Drone Recoveries . | . . . . . . . . . . . . . . Exploration | -11 -10 -10 -9 -9 -9 -8 -8 -7 -7 -7 -7 -7 -7 ------------- Run | Yrd Mat Min Mat Min Exi Min Mat Fac Was Fac Low Low Dat Turns Passed 13487 | 76 1133 726 2703 936 479 771 1465 2090 124 2126 389 341 128 Spaces Moved 12538 | 61 741 546 1463 585 304 439 778 3054 234 2880 739 545 169 Core 21 | 4 . . . . . . . 1 . . . . 16 Treads 17 | 2 1 . 1 . . . . . . . . 6 7 Legs . | . . . . . . . . . . . . . . Wheels 4910 | 55 740 546 1462 585 304 439 778 1 . . . . . Hover . | . . . . . . . . . . . . . . Flight 7590 | . . . . . . . . 3052 234 2880 739 539 146 Fastest Speed 50 | 50 95 125 125 155 155 155 120 50 50 50 50 50 50 Average Speed 85 | 91 117 125 143 155 155 168 136 50 50 50 50 51 55 Slowest Speed 850 | 160 240 125 240 155 155 170 170 850 50 50 50 160 240 Overloaded Moves . | . . . . . . . . . . . . . . Propulsion Burnouts . | . . . . . . . . . . . . . . Robots Hopped 40 | . . . . . . . . 25 . 15 . . . Cave-ins Triggered . | . . . . . . . . . . . . . . Exploration Rate (%) 74 | 4 95 95 96 97 70 93 66 54 86 67 81 62 80 Regions Visited 13 Branch Regions 7 Pre-discovered Areas 12 | . 2 1 2 2 1 . 1 1 . . 1 . 1 Known Exits Taken 2 | . . . . . . 1 . . . 1 . . . Unknown Exits Taken 9 | 1 1 1 1 1 1 . 1 . . . 1 1 . Scrap Searched 9 | . . 1 . 2 . 2 . . . . 3 1 . Spaces Dug 108 | . 1 . 13 10 . . 7 21 . 38 . 9 9 Terrain Destroyed 306 | . 26 18 27 10 . 14 20 31 . 131 . 20 9 Melee 54 | . . . . . . . . 21 . 32 . . 1 Projectile . | . . . . . . . . . . . . . . AOE 252 | . 26 18 27 10 . 14 20 10 . 99 . 20 8 Terrain Rammed . | . . . . . . . . . . . . . . Walls Destroyed . | . . . . . . . . . . . . . . Machines Disabled . | . . . . . . . . . . . . . . Actions | -11 -10 -10 -9 -9 -9 -8 -8 -7 -7 -7 -7 -7 -7 --------- Run | Yrd Mat Min Mat Min Exi Min Mat Fac Was Fac Low Low Dat Total 14578 | 76 890 567 1907 606 313 464 1097 3453 240 3424 755 593 193 Wait 1097 | 1 60 4 247 13 . 14 176 188 4 364 12 14 . Move 12449 | 60 740 545 1462 584 303 438 777 3007 233 2849 738 544 169 Hop 37 | . . . . . . . . 22 . 15 . . . Pick Up 89 | 7 13 1 22 1 1 . 5 18 2 11 1 5 2 Fast Attach 44 | 6 2 . 4 . . 1 3 15 . 9 1 3 . Attach 33 | 1 . 1 2 . 1 1 2 12 . 8 . 2 3 Detach 15 | . . . . . . . . 11 . 2 . 1 1 Swap 105 | . 6 3 26 3 . 2 18 15 . 25 . 6 1 Drop 113 | . 9 1 25 1 5 1 7 32 1 15 1 9 6 Fire 231 | 1 60 12 86 4 . 7 41 8 . 9 . 2 1 Melee 173 | . . . 1 . 3 . . 78 . 72 2 7 10 Ram . | . . . . . . . . . . . . . . Kick . | . . . . . . . . . . . . . . Crush . | . . . . . . . . . . . . . . Escape Stasis 18 | . . . . . . . . . . 18 . . . Rewire . | . . . . . . . . . . . . . . Trap 174 | . . . 32 . . . 68 47 . 27 . . . Miscellaneous . | . . . . . . . . . . . . . . Route ------- -11/Scrapyard -10/Materials (discovered 6 exits: *Mat x3 / [*Min x2] / [*Sub]) -10/Mines (discovered 2 exits: *Mat x2) -9/Materials (discovered 5 exits: *Mat x3 / [*Min x2]) -9/Mines (discovered 3 exits: *Mat x2 / *Exi) -9/Exiles -8/Mines (discovered 2 exits: *Mat x2) -8/Materials (discovered 2 exits: *Fac x2) -7/Factory (discovered 4 exits: *Fac / Sto / *Low x2) -7/Waste -7/Factory (discovered 8 exits: *Fac x4 / *Sto x2 / *Low x2) -7/Lower Caves -7/Lower Caves -7/Data Miner (discovered 1 exit: [*Pro]) History --------- Turn | Location | Event 33 | -11/Scrapyard | Discovered new exit (range 15) 77 | -11/Scrapyard | Entered Materials 110 | -10/Materials | Discovered new exit (range 11) 156 | -10/Materials | Discovered new exit (range 13) 301 | -10/Materials | Discovered new exit (range 12) 312 | -10/Materials | Build established: Mutant 345 | -10/Materials | Central database locked down 377 | -10/Materials | Discovered new exit (range 7) 701 | -10/Materials | Discovered new exit (range 7) 900 | -10/Materials | Discovered new exit (range 8) 1210 | -10/Materials | Entered Mines 1280 | -10/Mines | Discovered new exit (range 16) 1354 | -10/Mines | Learned 2 Materials zone layouts 1636 | -10/Mines | Assisted by bots powering up and referring to "LRC-V3" 1918 | -10/Mines | Learned location of Storage (-7) 1919 | -10/Mines | Discovered new exit (range 11) 1936 | -10/Mines | Entered Materials 1936 | -9/Materials | Accompanied by 5 allies 1936 | -9/Materials | Evolved 2 slots: Propulsion x1, Utility x1 1937 | -9/Materials | Identified exit to Materials 1941 | -9/Materials | Led the pair of lost Derelicts to an unsafe place 2126 | -9/Materials | Discovered new exit (range 4) 2247 | -9/Materials | Build established: Scavenger-Mutant 2250 | -9/Materials | Met 8R-AWN 2381 | -9/Materials | Lost 3 allies 2487 | -9/Materials | Discovered new exit (range 9) 2916 | -9/Materials | Discovered exit to Materials (range 15) 3363 | -9/Materials | Discovered exit to Materials (range 4) 3385 | -9/Materials | Build established: Mutant 3552 | -9/Materials | Repaired Grenade Launcher 4639 | -9/Materials | Entered Mines 4640 | -9/Mines | Assembled infested the area 4641 | -9/Mines | Followed 8R-AWN into the Mines 4645 | -9/Mines | Assisted by a Guerilla fighting off Assembled 4764 | -9/Mines | Learned Materials trap positions 4955 | -9/Mines | Discovered exit to Materials (range 12) 5166 | -9/Mines | Learned location of Zion (-6) 5296 | -9/Mines | Found a hidden stash of uninstalled traps 5468 | -9/Mines | Discovered exit to Materials (range 5) 5568 | -9/Mines | Discovered new exit (range 5) 5575 | -9/Mines | Entered Exiles 5615 | -9/Exiles | Welcomed by 8R-AWN 5637 | -9/Exiles | Met EX-HEX 5706 | -9/Exiles | Met EX-DEC 5794 | -9/Exiles | Met EX-BIN 5824 | -9/Exiles | Aligned with FarCom system 5825 | -9/Exiles | Given EX-Vault access code 5863 | -9/Exiles | Opened EX-Vault 5875 | -9/Exiles | Found Flying Fortress v7 5910 | -9/Exiles | Warned to stay clear of 0b10 Research branches 6037 | -9/Exiles | Discovered new exit (range 14) 6054 | -9/Exiles | Left Exiles lab with Flying Fortress v7 6054 | -9/Exiles | Entered Mines 6361 | -8/Mines | Discovered exit to Materials (range 9) 6401 | -8/Mines | Discovered exit to Materials (range 7) 6825 | -8/Mines | Entered Materials 6825 | -8/Materials | Evolved 2 slots: Propulsion x1, Utility x1 6826 | -8/Materials | Loaded intel: 17 trap records 6906 | -8/Materials | Garrison activated, responded to threat 7574 | -8/Materials | Repaired Reflective Plating 7626 | -8/Materials | Met 7R-MNS 7665 | -8/Materials | Discovered new exit (range 12) 7736 | -8/Materials | Discovered new exit (range 15) 8063 | -8/Materials | Repaired Broken Adv. Treads? 8290 | -8/Materials | Entered Factory 8290 | -7/Factory | Evolved 2 slots: Utility x2 8291 | -7/Factory | Caught up to 7R-MNS 8314 | -7/Factory | Found Prototype Launcher 8314 | -7/Factory | Identified Rocket Array 8517 | -7/Factory | Discovered new exit (range 8) 8766 | -7/Factory | Discovered new exit (range 9) 9012 | -7/Factory | Repaired Imp. Light Armor Plating 9227 | -7/Factory | Identified exit to Storage 9227 | -7/Factory | Identified exit to Lower Caves 9407 | -7/Factory | Build established: Hacker-Mutant 9642 | -7/Factory | Cargo convoy interrupted 9683 | -7/Factory | Lost 3 allies 10380 | -7/Factory | Sucked down chute 10380 | -7/Factory | Entered Waste 10388 | -7/Waste | Spotted C-40 Crusher 10392 | -7/Waste | Spotted C-40 Crusher 10393 | -7/Waste | Spotted C-40 Crusher 10402 | -7/Waste | Spotted C-40 Crusher 10402 | -7/Waste | Spotted C-40 Crusher 10412 | -7/Waste | Spotted C-40 Crusher 10471 | -7/Waste | Warlord forces began an assault 10478 | -7/Waste | Discovered new exit (range 12) 10504 | -7/Waste | Entered Factory 10533 | -7/Factory | Lost 10 allies 10790 | -7/Factory | Identified exit to Factory 10825 | -7/Factory | Discovered exit to Storage (range 13) 11203 | -7/Factory | Repaired Rocket Array? 11947 | -7/Factory | Fabricated Adv. Hacking Suite (x1) 11977 | -7/Factory | Fabricated Adv. Hacking Suite? 12017 | -7/Factory | Fabricated Adv. Hacking Suite (x1) 12044 | -7/Factory | Fabricated Adv. Hacking Suite? 12083 | -7/Factory | Build established: Hacker-Scout 12274 | -7/Factory | Repaired Imp. Light Armor Plating 12322 | -7/Factory | Discovered exit to Storage (range 15) 12630 | -7/Factory | Entered Lower Caves 12708 | -7/Lower Caves | Acquired the password to a Derelict Tinkerer's latest research 12769 | -7/Lower Caves | Build established: Mutant 13013 | -7/Lower Caves | Discovered new exit (range 7) 13019 | -7/Lower Caves | Entered another Lower Caves area 13239 | -7/Lower Caves | Encountered a Warlord checkpoint 13353 | -7/Lower Caves | Discovered new exit (range 14) 13360 | -7/Lower Caves | Entered Data Miner 13360 | -7/Data Miner | Discovered new exit (range 6) 13370 | -7/Data Miner | Met Data Miner 13386 | -7/Data Miner | Learned location of Section 7 (-2) 13386 | -7/Data Miner | Acquired the access code to Warlord's prototype stash 13394 | -7/Data Miner | Received God Mode back door access code from Data Miner 13424 | -7/Data Miner | Destroyed Data Miner 13427 | -7/Data Miner | Found System Mapper 13438 | -7/Data Miner | Data Conduit disabled 13473 | -7/Data Miner | Core integrity fell below 50% 13481 | -7/Data Miner | Core integrity fell below 20% 13488 | -7/Data Miner | Destroyed by Enhanced Grunt with Neutron Cannon Last Messages --------------- door I've installed. Now off with you. 13406_ Dropped Imp. Datajack. 13408_ Dropped Transmission Jammer. 13409_ Dropped Authchip [Power]. 13410_ Dropped Authchip [Device]. 13413_ GUNZQHG%RXOLXDYG2NEPHLO/RYOU DVUY7 13424_ Sneak attack on Data Miner. 13424_ Data Miner destroyed. 13427_ Acquired System Mapper. 13438_ Data Conduit disabled. 13461_ Flying Fortress v7 destroyed. 13471_ Med. Treads destroyed. 13476_ Imp. Light Armor Plating destroyed. 13476_ Med. Treads destroyed. 13480_ Backup Power III destroyed. 13480_ Dropped Hcp. Storage Unit. 13481_ Dropped Adv. Hacking Suite. 13481_ Acquired System Mapper. 13481_ Spear destroyed. Map ----- +----------------------------------------------------+ | | | | | | | | | | | | | | | | | | | | | | | | | | | | | | | | | | | ???????????????????????????????????????????? | | ???????????????????????????????????????????? | | ???????????????????????????????????????????? | | ???????????????????????????????????????????? | | ???????????????????????????????####????????? | | ###############????#######?#?### #????????? | | """""""""" """###### # # # ###!! #????????? | | """"""" """"""""# # # # ##/!< ##????????? | | """"""" @ ######???? | | """" #???? | | """" g #???? | | """%* #???? | | """" ##???? | | """" """"""""""""""""#####????? | | """"" !!= """"###############????????? | | """"" !!"""""###??????????????????????? | | """"""" !!!"#####????????????????????????? | | ######"## !"#????????????????????????????? | | ?????#"## !!"#????????????????????????????? | | ?????#"## #????????????????????????????? | | ?????#"# "#????????????????????????????? | | ?????#" "#????????????????????????????? | | ?????#" "#????????????????????????????? | | ?????# "#????????????????????????????? | | ?????# "##???????????????????????????? | | ?????# ### ""#???????????????????????????? | | ?????# ## ""#???????????????????????????? | | ??#"## #"X ""#???????????????????????????? | | ??#"""" " "####????????????????????????? | | ??##"""" X"""""????????????????????????? | | ???###"#"X "##"#????????????????????????? | | ?????#"## X""""#????????????????????????? | | ?????#"### "##"#????????????????????????? | +----------------------------------------------------+ Best States ------------- Heat Dissipation 34 Energy Generation 12 Energy Capacity 265 Matter Stores 300 Matter Capacity 300 Sight Range 16 Terrain Scan Density 10 Jamming Range 12 Corruption Block 8 Armor Coverage 300 Resistance: TH 10 Propulsion Shielding 66 Evasion (%) 60 Core Analysis 9 Recoil Reduction 3 Offensive Hacking 38 Defensive Hacking 10 Authchip Count 11 Trap Extractor Capacity 6 Item Schematics ----------------- Beamcaster | -9/Materials | Scanalyzed Lrg. Storage Unit | -9/Materials | Scanalyzed Hcp. Storage Unit | -9/Materials | Scanalyzed Machine Analyzer | -9/Materials | Scanalyzed Plasma Cutter | -9/Materials | Hacked Nuclear Pulse Thruster | -7/Factory | Hacked Hacking Suite | -7/Factory | Hacked Cmb. Airjet | -7/Factory | Scanalyzed Matter Filter | -7/Factory | Scanalyzed Imp. Trap Extractor | -7/Factory | Scanalyzed Powered Armor | -7/Factory | Hacked Core Analyzer | -7/Factory | Scanalyzed Adv. Hacking Suite | -7/Factory | Scanalyzed Combat Drone Bay | -7/Data Miner | Free Lgt. Regenerative Plating | -7/Data Miner | Free Cld. Aerolev Unit | -7/Data Miner | Free Exp. Power Shielding | -7/Data Miner | Free Cld. Plasma Cannon | -7/Data Miner | Free Gyrokinetic Inverter | -7/Data Miner | Free Adv. Cooling System | -7/Data Miner | Free Imp. Arc Projector | -7/Data Miner | Free Hyp. Coil Gun | -7/Data Miner | Free Imp. Coolant Injector | -7/Data Miner | Free Myomer Leg | -7/Data Miner | Free Robot Schematics ------------------ M-13 Machinist | -9/Materials | Hacked K-01 Serf | -7/Factory | Hacked H-55 Commando | -7/Factory | Hacked G-47 Trooper | -7/Data Miner | Free D-53 Grenadier | -7/Data Miner | Free M-28 Smith | -7/Data Miner | Free G-50 Soldier | -7/Data Miner | Free L-41 Fighter | -7/Data Miner | Free R-10 Processor | -7/Data Miner | Free Fabricated ------------ Adv. Hacking Suite | x1 | -7/Factory | Authchip Adv. Hacking Suite | x1 | -7/Factory | Authchip Adv. Hacking Suite | x1 | -7/Factory | Authchip Adv. Hacking Suite | x1 | -7/Factory Alien Tech Used ----------------- None Achievements -------------- None Challenges ------------ None Game ------ Seed IonSchematicCapacitor Manual? 0 Play Time 03:03:33 Cumulative 746.0 hours Start 2024.05.20 @ 00:59:44 End 2024.05.21 @ 00:13:10 Sessions 10 Manual Loads 0 Difficulty Rogue Special Mode None Game No. 303 Rogue 273 Adventurer 3 Explorer 27 Win Type - Total 16 Types 10/3/1/1/0/1/0/0/0 Lore% 92 Gallery% 96 Achievement% 85 Wizard Run 0 Options --------- Layout 2 ASCII 0 Keyboard 0 Movement Numpad Keybinds 0 Fullscreen 2 Font 24/Smallcaps Map View 50x44 Zoom Use 0% Tactical HUD 1 Map Filters NONE Filters NONE Steam 1 RUN: 83eef366-1f64-4f18-91ab-a204db0bfd36